bitfinex-derivatives/quotes_ETHF0:USTF0_20241024
["timestamp","ask_amount","ask_price","bid_price","bid_amount"]
[1729747625757,0.35213,2558.3,2558.2,0.35214]
[1729747626152,4.48228842,2558.3,2558.2,0.35214]
[1729747626547,4.48228842,2558.3,2557.8,3.6244]
[1729747626548,4.48228842,2558.3,2558.1,0.35214]
[1729747626856,4.13015842,2558.3,2557.8,3.6244]
[1729747627058,4.13015842,2558.3,2558.0,0.35216]
[1729747627358,4.13015842,2558.3,2557.8,3.6244]
[1729747627550,4.13015842,2558.3,2558.1,0.35215]
[1729747627551,0.35214,2558.2,2558.1,0.35215]
[1729747628056,4.46639472,2558.2,2558.1,0.35215]
[1729747628360,4.46639472,2558.2,2557.8,3.6244]
[1729747628759,4.46639472,2558.2,2558.1,0.35215]
[1729747629359,4.11425472,2558.2,2558.1,0.35215]
[1729747629758,4.85224103,2558.3,2558.1,0.35215]
[1729747629960,0.35214,2558.3,2558.1,0.35215]
[1729747630257,4.20255644,2558.2,2558.1,0.35215]
[1729747630561,4.55470644,2558.2,2557.8,3.6244]
[1729747630765,4.55470644,2558.2,2558.1,0.35215]
[1729747630961,0.35215,2558.2,2558.1,0.35215]
[1729747631371,4.86671151,2558.2,2558.1,0.35215]
[1729747632869,4.51456151,2558.2,2558.1,0.35215]
[1729747633065,4.86670151,2558.2,2558.1,3.55995]
[1729747633668,4.51456151,2558.2,2558.1,3.55995]
[1729747634070,4.86670151,2558.2,2558.1,3.55995]
[1729747635367,4.86670151,2558.2,2558.1,0.35215]
[1729747636666,0.35215,2558.1,2558.0,3.55996]
[1729747637172,4.86670151,2558.2,2558.1,0.35215]
[1729747638274,0.35216,2558.1,2558.0,0.35216]
[1729747638483,0.35217,2558.0,2557.9,3.2078]
[1729747638864,4.52333435,2558.0,2557.9,3.2078]
[1729747639671,4.52333435,2558.0,2557.3,2.83264]
[1729747639672,8.08076435,2558.0,2557.3,3.2078]
[1729747639872,0.35225,2557.4,2557.3,3.2078]
[1729747640271,45.62893708,2557.4,2557.3,3.2078]
[1729747641074,46.06133708,2557.4,2557.3,3.2078]
[1729747641476,49.97173708,2557.4,2557.3,3.2078]
[1729747647380,46.06133708,2557.4,2557.3,3.2078]
[1729747647586,0.35226,2557.3,2557.1,3.56009]
[1729747647889,4.23597432,2557.2,2557.1,3.56009]
[1729747649585,4.47451585,2557.3,2557.2,0.35228]
[1729747649787,0.78466,2557.4,2557.2,0.35228]
[1729747650292,4.46421113,2557.3,2557.2,0.35228]
[1729747650488,0.4009,2557.8,2557.7,0.35221]
[1729747650787,4.37832175,2557.6,2557.5,3.56003]
[1729747651188,4.37832175,2557.7,2557.6,0.35222]
[1729747651394,0.75311,2557.8,2557.6,0.35222]
[1729747651803,4.37832175,2557.7,2557.6,0.35222]
[1729747652793,4.37832175,2557.7,2557.6,6.70415444]
[1729747653094,0.4315,2558.3,2557.6,2.86703444]
[1729747653296,40.8,2558.2,2557.9,3.2078]
[1729747653483,40.8,2558.2,2557.9,3.55997]
[1729747653689,0.35217,2558.0,2557.9,3.55998]
[1729747654089,4.5280421,2558.0,2557.9,3.55998]
[1729747654394,4.5280421,2558.0,2557.9,3.2078]
[1729747654697,0.35217,2558.0,2557.9,3.2078]
[1729747654894,4.5280421,2558.1,2557.9,3.2078]
[1729747655090,4.14778708,2558.0,2557.9,3.55998]
[1729747655396,4.49994708,2558.1,2557.9,3.55998]
[1729747655591,0.35216,2558.1,2557.9,3.55998]
[1729747655897,4.25544251,2558.0,2557.9,3.55998]
[1729747656691,0.35217,2558.0,2557.9,3.2078]
[1729747657001,4.73520018,2558.0,2557.9,3.2078]
[1729747657296,4.73520018,2558.0,2557.9,3.55998]
[1729747657496,4.38303018,2558.0,2557.9,3.55998]
[1729747657693,4.38303018,2558.0,2557.9,3.2078]
[1729747657900,4.38303018,2558.0,2557.9,3.55998]
[1729747658301,4.38303018,2558.0,2557.7,0.4035]
[1729747658501,0.35218,2557.9,2557.7,0.4035]
[1729747658797,0.35217,2558.0,2557.8,0.35219]
[1729747659296,4.52010284,2557.9,2557.8,0.35219]
[1729747659496,4.52010284,2557.9,2557.7,0.4035]
[1729747659701,4.52010284,2557.9,2557.6,3.6325]
[1729747659899,0.7864,2557.8,2557.6,3.56001]
[1729747660298,4.43330692,2557.7,2557.6,3.56001]
[1729747661999,4.43330692,2557.7,2557.6,0.35221]
[1729747662301,4.43330692,2557.7,2557.6,3.56001]
[1729747671100,4.43330692,2557.7,2557.3,3.6262]
[1729747671298,6.87564136,2557.7,2557.3,0.4184]
[1729747671606,0.35224,2557.5,2557.3,0.77065]
[1729747671805,6.87564136,2557.7,2557.4,0.35224]
[1729747671806,0.35223,2557.6,2557.4,0.35224]
[1729747671999,4.52187367,2557.4,2557.3,0.35226]
[1729747672198,4.87411367,2557.5,2557.3,0.35226]
[1729747672406,0.35224,2557.5,2557.2,3.6322]
[1729747672702,0.35223,2557.6,2557.4,0.35224]
[1729747673004,2.79455444,2557.7,2557.5,0.35224]
[1729747673406,4.22220949,2557.6,2557.4,3.2078]
[1729747673605,4.57443949,2557.6,2557.4,3.56004]
[1729747673794,4.57443949,2557.6,2557.4,0.35224]
[1729747673997,4.22220949,2557.6,2557.2,0.4244]
[1729747674202,4.57443949,2557.6,2557.4,3.2078]
[1729747674402,4.57443949,2557.6,2557.5,0.35224]
[1729747676305,5.70266837,2557.6,2557.5,0.35224]
[1729747676506,9.61226837,2557.6,2557.5,0.35224]
[1729747677208,5.35043837,2557.6,2557.5,0.35224]
[1729747677603,5.70265837,2557.6,2557.5,0.35224]
[1729747677800,5.70265837,2557.6,2557.3,3.2078]
[1729747678003,1.12822888,2557.4,2557.3,3.56006]
[1729747678402,5.57578788,2557.4,2557.3,3.56006]
[1729747682007,5.57578788,2557.4,2557.3,3.2078]
[1729747682217,5.92803788,2557.4,2557.3,3.2078]
[1729747682617,5.57578788,2557.4,2557.3,3.56006]
[1729747684518,5.92803788,2557.4,2557.3,3.2078]
[1729747685016,5.57578788,2557.4,2557.3,3.56006]
[1729747686213,5.57578788,2557.4,2557.3,0.35226]
[1729747686917,5.57578788,2557.4,2557.2,3.56007]
[1729747687121,1.90638888,2557.3,2557.2,3.56007]
[1729747687319,1.55412888,2557.3,2557.2,3.56007]
[1729747687515,6.01507725,2557.3,2557.2,3.56007]
[1729747687720,6.01507725,2557.3,2557.2,3.2078]
[1729747687721,6.36733725,2557.3,2557.2,3.2078]
[1729747687922,6.78933725,2557.3,2557.2,3.2078]
[1729747689216,0.35233,2556.9,2556.7,3.56014]
[1729747689415,1.12822888,2556.8,2556.7,3.56013]
[1729747689619,5.63498982,2556.8,2556.7,3.56013]
[1729747690125,5.98731982,2556.8,2556.7,3.56013]
[1729747690420,5.63498982,2556.8,2556.7,3.56013]
[1729747692218,6.04498982,2556.8,2556.7,3.56013]
[1729747692626,9.95618982,2556.8,2556.4,3.2078]
[1729747692923,0.35235,2556.7,2556.5,0.35237]
[1729747693218,4.49349866,2556.6,2556.5,0.35237]
[1729747693922,4.84584866,2556.7,2556.5,0.35237]
[1729747694129,1.12822888,2556.6,2556.5,0.35237]
[1729747694318,5.24656922,2556.6,2556.5,0.35237]
[1729747697123,4.11834034,2556.6,2556.5,0.35237]
[1729747697421,1.12822888,2556.6,2556.5,0.35237]
[1729747697724,5.28562752,2556.6,2556.5,0.35237]
[1729747711430,5.63798752,2556.6,2556.5,0.35237]
[1729747711637,5.28562752,2556.6,2556.5,0.35237]
[1729747713543,5.63798752,2556.6,2556.5,0.35237]
[1729747714046,5.63798752,2556.6,2556.4,0.35238]
[1729747714244,1.12822888,2556.5,2556.4,0.35238]
[1729747714646,5.31811958,2556.5,2556.4,0.35238]
[1729747729443,5.31811958,2556.5,2556.3,0.785]
[1729747729748,1.12822888,2556.4,2556.3,0.785]
[1729747729940,0.3524,2556.3,2556.2,3.2078]
[1729747730140,0.35244,2556.0,2555.9,3.2078]
[1729747730342,1.48066888,2556.0,2555.9,3.2078]
[1729747731143,1.48066888,2556.0,2555.6,3.56029]
[1729747731144,0.35246,2555.9,2555.6,3.56029]
[1729747731351,1.12822888,2555.7,2555.6,3.56029]
[1729747731546,1.12822888,2555.7,2555.6,3.2078]
[1729747731751,1.12822888,2555.7,2555.6,3.5603]
[1729747732548,41.92822888,2555.7,2555.6,3.5603]
[1729747733050,42.28070888,2555.7,2555.6,3.2078]
[1729747733251,0.35251,2555.5,2555.3,3.6297]
[1729747733445,1.53082888,2555.4,2555.3,3.98224]
[1729747733647,5.89529337,2555.4,2555.3,3.6297]
[1729747734157,5.89529337,2555.4,2555.3,3.98224]
[1729747735249,6.24781337,2555.4,2555.3,3.2078]
[1729747737556,7.37604225,2555.4,2555.3,2.1096]
[1729747737751,11.28964225,2555.4,2555.3,2.1096]
[1729747737960,11.28964225,2555.4,2554.9,0.4355]
[1729747737961,15.13112225,2555.4,2554.9,3.99589]
[1729747738158,1.12822888,2555.0,2554.9,3.6433]
[1729747738458,1.12822888,2555.0,2554.9,3.99589]
[1729747739661,1.12822888,2555.0,2554.9,3.2078]
[1729747739860,1.53932888,2555.0,2554.9,3.2078]
[1729747740461,1.53932888,2555.0,2554.9,3.56039]
[1729747741060,5.73332888,2555.0,2554.9,3.56039]
[1729747741362,5.73332888,2555.0,2554.9,0.35259]
[1729747741564,6.08590888,2555.0,2554.8,0.35261]
[1729747741765,1.12822888,2554.9,2554.8,0.35261]
[1729747742650,1.12822888,2554.9,2554.8,4.26701]
[1729747745067,1.12822888,2554.9,2554.8,0.35261]
[1729747745263,1.12822888,2554.9,2554.8,4.26701]
[1729747745563,1.12822888,2554.9,2554.8,0.35261]
[1729747745760,1.12822888,2554.9,2554.8,4.26701]
[1729747745961,1.12822888,2554.9,2554.8,0.35261]
[1729747746163,1.12822888,2554.9,2554.8,4.26701]
[1729747746359,1.12822888,2554.9,2554.8,0.35261]
[1729747746668,1.12822888,2554.9,2554.8,4.26701]
[1729747746965,0.35267,2554.4,2554.1,3.5605]
[1729747747162,1.12822888,2554.2,2554.1,3.2078]
[1729747747466,4.34006165,2554.3,2554.2,0.35269]
[1729747747766,1.12822888,2554.3,2554.2,0.75679]
[1729747748166,5.36358808,2554.3,2554.2,0.75679]
[1729747748656,1.12822888,2554.3,2554.2,4.67199]
[1729747751970,1.21124,2554.6,2554.3,0.35267]
[1729747752176,1.12822888,2554.4,2554.3,0.76557]
[1729747752467,4.17063042,2554.5,2554.4,0.35266]
[1729747752662,1.12822888,2554.6,2554.5,0.35265]
[1729747753672,1.12822888,2554.6,2554.5,4.26705]
[1729747755374,1.12822888,2554.6,2554.5,3.9144]
[1729747755673,1.12822888,2554.6,2554.5,4.26705]
[1729747760068,1.12822888,2554.6,2554.4,3.56046]
[1729747760069,5.36905675,2554.6,2554.4,3.56046]
[1729747760268,5.36905675,2554.6,2554.4,0.35266]
[1729747760269,1.12822888,2554.5,2554.4,0.35266]
[1729747760665,5.4946238,2554.5,2554.4,0.35266]
[1729747765491,4.36639492,2554.5,2554.4,0.35266]
[1729747765693,5.4946238,2554.5,2554.4,0.35266]
[1729747766392,5.4946238,2554.5,2554.3,0.4129]
[1729747766587,5.4946238,2554.5,2554.3,0.76558]
[1729747766588,1.12822888,2554.4,2554.3,0.76558]
[1729747767787,1.12822888,2554.4,2554.3,4.68078]
[1729747769195,4.194,2554.7,2554.3,5.45632888]
[1729747769397,3.32877,2555.0,2554.9,0.35259]
[1729747769696,3.59099888,2555.0,2554.9,0.35259]
[1729747769885,3.59099888,2555.0,2554.8,0.3526]
[1729747770193,1.12822888,2554.9,2554.8,0.7481]
[1729747770596,1.12822888,2554.9,2554.8,0.3955]
[1729747770894,5.78647765,2554.9,2554.6,0.35263]
[1729747771089,1.12822888,2554.7,2554.6,0.35263]
[1729747771793,1.12822888,2554.7,2554.5,0.35264]
[1729747772093,1.48086888,2554.6,2554.4,1.15035]
[1729747772297,0.35264,2554.6,2554.4,0.3992]
[1729747773587,3.26339146,2554.7,2554.2,1.46668]
[1729747773787,2.46277,2554.3,2554.2,1.46668]
[1729747774199,2.46277,2554.3,2554.2,5.38188]
[1729747776194,2.46277,2554.3,2554.2,5.50442687]
[1729747776394,2.46277,2554.3,2554.2,5.38188]
[1729747776589,2.46277,2554.3,2554.2,5.50442649]
[1729747778295,2.46277,2554.3,2554.2,8.71222649]
[1729747779086,2.46277,2554.3,2554.2,9.32495488]
[1729747779290,2.46277,2554.3,2554.2,8.71222649]
[1729747779791,2.46277,2554.3,2554.2,9.32495336]
[1729747779994,2.46277,2554.3,2554.2,8.71222649]
[1729747780191,2.46277,2554.3,2554.2,6.11715225]
[1729747780685,2.46277,2554.3,2554.2,2.20195225]
[1729747780885,2.46277,2554.3,2554.2,6.11715225]
[1729747781290,2.46277,2554.3,2554.2,9.32495225]
[1729747782091,2.46277,2554.3,2554.2,9.52102392]
[1729747783300,2.46277,2554.3,2554.2,6.31322392]
[1729747783899,2.46277,2554.3,2554.2,9.52102392]
[1729747784202,2.46277,2554.3,2554.2,8.58968]
[1729747784400,2.46277,2554.3,2554.2,9.52099641]
[1729747784700,2.46277,2554.3,2554.2,6.31319641]
[1729747785293,2.46277,2554.3,2554.2,9.52099641]
[1729747786292,43.24699146,2555.3,2554.2,12.59562414]
[1729747786493,0.8317,2555.2,2555.1,0.35256]
[1729747786700,6.10620826,2555.2,2555.0,0.35257]
[1729747786901,6.10620826,2555.2,2554.5,4.0894]
[1729747787105,6.10620826,2555.2,2555.0,0.35257]
[1729747787403,6.10620826,2555.2,2555.0,0.35258]
[1729747787796,6.45876826,2555.2,2554.9,0.35259]
[1729747789701,6.45876826,2555.2,2554.4,0.88164]
[1729747789702,6.45876826,2555.2,2554.7,3.2078]
[1729747789899,6.45876826,2555.2,2555.0,0.35258]
[1729747791199,6.45876826,2555.2,2554.9,0.35259]
[1729747791399,6.45876826,2555.2,2555.0,0.35258]
[1729747792305,6.10620826,2555.2,2555.1,0.35257]
[1729747792506,7.23540607,2555.2,2555.1,0.35257]
[1729747795506,7.58796607,2555.2,2555.0,0.35257]
[1729747795812,1.12919781,2555.1,2555.0,0.35257]
[1729747800311,1.12919781,2555.1,2554.8,0.8314]
[1729747800513,1.12919781,2554.9,2554.8,1.18401]
[1729747800708,1.12919781,2554.9,2554.8,1.30653119]
[1729747802011,1.48178781,2554.9,2554.8,0.12252119]
[1729747802211,1.48178781,2554.9,2554.7,3.2078]
[1729747802212,5.04359781,2554.9,2554.5,0.4234]
[1729747802416,5.04359781,2554.9,2554.2,3.98388]
[1729747802417,0.35265,2554.5,2554.2,3.98388]
[1729747802713,1.12919781,2554.3,2554.2,3.98388]
[1729747803018,1.99519781,2554.3,2554.2,4.9152419]
[1729747803219,1.99519781,2554.3,2554.2,8.8304419]
[1729747803717,0.866,2554.3,2554.2,9.95963971]
[1729747806417,0.866,2554.3,2554.2,9.02827781]
[1729747806617,0.866,2554.3,2554.2,9.9596081]
[1729747806818,0.866,2554.3,2554.2,10.3667081]
[1729747808113,25.0,3494.0,2554.9,0.35258]
[1729747808114,1.12919781,2555.0,2554.9,0.35258]
[1729747808713,1.12919781,2555.0,2554.9,1.19948]
[1729747811618,0.8174,2555.2,2555.1,0.35257]
[1729747811619,0.4195,2555.2,2555.1,0.35257]
[1729747811928,3.56029,2555.7,2555.4,0.35252]
[1729747812123,41.2131,2555.6,2555.4,0.35252]
[1729747812317,45.50677408,2555.6,2555.4,0.35252]
[1729747812928,1.12919781,2555.5,2555.4,0.35252]
[1729747814015,41.2131,2555.6,2555.4,0.35252]
[1729747814215,1.12919781,2555.5,2555.4,0.35252]
[1729747814423,5.6404174,2555.5,2555.4,0.35252]
[1729747815323,9.5540174,2555.5,2554.9,1.55379781]
[1729747815517,0.35253,2555.4,2555.2,0.35255]
[1729747815819,0.35253,2555.4,2554.5,0.88162]
[1729747815820,4.89661239,2555.3,2554.6,2.25819781]
[1729747816020,0.4111,2555.2,2555.1,0.35257]
[1729747816218,0.8169,2555.2,2555.0,0.35257]
[1729747816424,5.11398176,2555.2,2555.0,0.35257]
[1729747816924,9.38014176,2555.2,2554.7,3.6069]
[1729747817137,1.12919781,2554.8,2554.7,3.95952]
[1729747817426,1.12919781,2554.8,2554.7,0.75172]
[1729747818020,1.12919781,2554.8,2554.7,0.3991]
[1729747818216,2.79941591,2555.0,2554.6,0.78633]
[1729747818425,2.44682591,2555.0,2554.6,0.78633]
[1729747818624,4.44040901,2554.9,2554.6,0.78633]
[1729747818828,0.3965,2554.8,2554.6,0.78633]
[1729747819021,0.8128,2554.8,2554.6,0.78633]
[1729747821126,0.8128,2554.8,2554.7,0.35262]
[1729747827437,0.8128,2554.8,2554.7,0.47514279]
[1729747828037,0.8128,2554.8,2554.7,0.35262]
[1729747828242,0.8128,2554.8,2554.7,0.4751432]
[1729747830239,5.203462,2554.8,2554.7,0.1225232]
[1729747830533,5.203462,2554.8,2554.2,2.3538]
[1729747830534,11.56468791,2554.8,2554.2,2.3538]
[1729747830731,7.65028791,2554.8,2554.6,0.35262]
[1729747830932,5.203462,2554.8,2554.7,0.35262]
[1729747831534,5.203462,2554.8,2554.5,0.35264]
[1729747832037,5.203462,2554.8,2554.6,0.35263]
[1729747832636,5.556072,2554.8,2554.5,0.35264]
[1729747832839,0.4368,2554.7,2554.5,0.35264]
[1729747833037,0.4368,2554.7,2554.4,3.2078]
[1729747833233,4.45542125,2554.6,2554.5,0.35265]
[1729747834343,4.45542125,2554.6,2554.4,3.2078]
[1729747834535,4.45542125,2554.6,2554.4,0.35266]
[1729747835034,0.35266,2554.5,2554.2,0.8102]
[1729747835236,0.35266,2554.5,2554.2,1.16289]
[1729747835540,4.95330434,2554.4,2554.0,3.56051]
[1729747835734,0.4027,2554.3,2554.2,0.35269]
[1729747836045,4.58183434,2554.3,2554.2,0.12255063]
[1729747836232,4.58183434,2554.3,2554.1,0.3527]
[1729747836941,4.58183434,2554.3,2554.2,0.35269]
[1729747837438,4.58183434,2554.3,2554.1,0.35269]
[1729747838340,1.12947532,2554.2,2554.1,0.35269]
[1729747841844,1.53217532,2554.3,2554.1,1.12947532]
[1729747842040,1.53217532,2554.3,2554.2,0.35269]
[1729747842240,1.53217532,2554.3,2554.1,0.3527]
[1729747842438,1.12947532,2554.2,2554.1,0.3527]
[1729747842943,1.12947532,2554.2,2554.0,3.2078]
[1729747843141,1.12947532,2554.2,2554.0,4.68998532]
[1729747843335,1.12947532,2554.1,2554.0,1.48218532]
[1729747843541,1.12947532,2554.1,2554.0,0.35271]
[1729747845546,1.12947532,2554.1,2554.0,1.48218532]
[1729747847252,1.12947532,2554.2,2554.0,1.12947532]
[1729747847552,5.53979667,2554.2,2554.1,0.3527]
[1729747849251,5.53979667,2554.2,2554.0,1.48218532]
[1729747849462,5.53979667,2554.2,2554.1,0.3527]
[1729747850850,5.53979667,2554.2,2554.0,0.35271]
[1729747851348,5.53979667,2554.2,2554.1,0.3527]
[1729747851852,5.53979667,2554.2,2554.0,0.35271]
[1729747852947,1.12947532,2554.1,2554.0,0.35271]
[1729747858458,1.12947532,2554.2,2554.1,0.3527]
[1729747858756,5.62366313,2554.2,2554.1,0.3527]
[1729747860158,5.62366313,2554.2,2553.9,3.646]
[1729747860361,4.49418781,2554.2,2554.0,0.35271]
[1729747860558,1.12947532,2554.1,2554.0,0.35271]
[1729747863152,1.12947532,2554.2,2553.9,3.646]
[1729747863657,5.5717421,2554.2,2554.0,0.35271]
[1729747863858,5.5717421,2554.2,2554.1,0.3527]
[1729747864251,4.44226678,2554.2,2553.9,3.646]
[1729747864563,1.12947532,2554.1,2554.0,0.35271]
[1729747866156,9.54463415,2554.1,2554.0,0.35271]
[1729747868361,5.62943415,2554.1,2554.0,0.35271]
[1729747871363,4.49995883,2554.1,2554.0,0.35271]
[1729747871564,0.4128,2554.7,2554.5,0.35264]
[1729747871762,0.4108,2554.7,2554.6,0.35264]
[1729747871962,4.81274746,2554.7,2554.6,0.35264]
[1729747872461,5.94222278,2554.7,2554.6,0.35264]
[1729747872661,5.94222278,2554.7,2554.5,1.19184]
[1729747872965,1.12947532,2554.6,2554.5,1.19184]
[1729747874668,1.12947532,2554.7,2554.5,0.8392]
[1729747874862,1.12947532,2554.7,2554.6,0.76994]
[1729747875264,5.50704889,2554.7,2554.6,0.76994]
[1729747877460,5.50704889,2554.7,2554.6,0.35264]
[1729747894178,5.50704889,2554.7,2554.5,0.8392]
[1729747894497,1.54817532,2554.6,2554.5,0.35264]
[1729747894875,5.74318596,2554.6,2554.5,0.35264]
[1729747895076,5.74318596,2554.6,2554.2,1.93837532]
[1729747895282,1.12947532,2554.3,2554.1,3.5605]
[1729747895479,1.12947532,2554.2,2554.1,3.2078]
[1729747895682,5.59150887,2554.2,2554.1,3.5605]
[1729747895977,1.12947532,2554.2,2554.1,3.2078]
[1729747896178,5.59150887,2554.2,2554.1,3.2078]
[1729747896376,5.59150887,2554.2,2554.1,3.5605]
[1729747896575,5.59150887,2554.2,2554.1,3.2078]
[1729747899183,5.59150887,2554.2,2553.9,3.2078]
[1729747899384,0.8351,2554.1,2554.0,0.35272]
[1729747899780,5.27276086,2554.1,2554.0,0.35272]
[1729747900380,6.40223618,2554.1,2554.0,0.35272]
[1729747901382,6.75494618,2554.1,2553.9,3.2078]
[1729747901586,1.53497532,2554.0,2553.9,3.2078]
[1729747901784,1.53497532,2554.0,2553.9,3.56053]
[1729747901992,1.53497532,2554.0,2553.8,0.74914]
[1729747901993,6.01095795,2554.0,2553.8,0.74914]
[1729747902187,1.12947532,2553.9,2553.8,0.74914]
[1729747903182,1.12947532,2553.9,2553.8,0.3964]
[1729747903888,1.12947532,2553.9,2553.8,0.74915]
[1729747904292,5.32805737,2553.9,2553.7,0.35275]
[1729747904886,5.32805737,2553.9,2553.8,0.35275]
[1729747906491,5.32805737,2553.9,2553.7,0.35275]
[1729747906788,1.12947532,2553.8,2553.7,0.35275]
[1729747906994,1.12947532,2553.8,2553.6,0.8102]
[1729747907284,1.12947532,2553.8,2553.5,3.56058]
[1729747907285,2.67995064,2553.7,2553.5,3.56058]
[1729747907493,1.12947532,2553.6,2553.5,3.2078]
[1729747907690,5.89548025,2553.6,2553.5,3.2078]
[1729747908493,5.89548025,2553.6,2553.5,3.56059]
[1729747908689,5.89548025,2553.6,2553.5,3.2078]
[1729747910288,5.89548025,2553.6,2553.5,3.56059]
[1729747910492,5.89548025,2553.6,2553.5,3.2078]
[1729747910795,9.81148025,2553.6,2553.5,3.2078]
[1729747910993,10.16425025,2553.6,2553.5,3.2078]
[1729747911293,50.96425025,2553.6,2553.5,3.2078]
[1729747911495,9.81148025,2553.6,2553.5,3.56059]
[1729747914700,9.81148025,2553.6,2553.5,0.35279]
[1729747914904,9.81148025,2553.6,2553.3,3.6157]
[1729747915086,0.4116,2553.5,2553.4,0.35279]
[1729747915292,1.54107532,2553.5,2553.4,0.35279]
[1729747915492,6.07654726,2553.5,2553.4,0.35279]
[1729747919698,6.07654726,2553.5,2553.3,3.6157]
[1729747919899,4.94707194,2553.5,2553.4,0.3528]
[1729747920403,5.29986194,2553.5,2553.3,3.96851]
[1729747920601,4.94707194,2553.5,2553.4,0.3528]
[1729747922094,6.07654726,2553.5,2553.4,0.3528]
[1729747926101,4.94707194,2553.5,2553.4,0.3528]
[1729747926299,6.07654726,2553.5,2553.4,0.3528]
[1729747926903,0.61260425,2564.0,2553.4,6.17495064]
[1729747926904,1.065,2554.9,2553.4,6.17495064]
[1729747927107,1.12947532,2554.3,2554.1,1.12947532]
[1729747927407,0.35265,2554.5,2554.3,0.35268]
[1729747927798,4.74104456,2554.4,2554.3,0.35268]
[1729747928008,5.87051988,2554.4,2554.3,0.35268]
[1729747929404,4.33394456,2554.4,2554.3,5.39735532]
[1729747929604,1.12947532,2554.5,2554.4,0.35266]
[1729747930116,1.12947532,2554.5,2554.4,1.15676]
[1729747930406,1.12947532,2554.8,2554.7,0.35262]
[1729747930813,5.56595204,2554.8,2554.7,0.35262]
[1729747938915,4.43647672,2554.8,2554.7,0.35262]
[1729747939317,1.12947532,2554.8,2554.7,0.35262]
[1729747939535,42.065,2555.0,2554.8,0.3526]
[1729747939738,1.12947532,2554.9,2554.8,0.3526]
[1729747939929,5.39851249,2554.9,2554.8,0.3526]
[1729747953648,4.26903717,2554.9,2554.8,1.48207532]
[1729747953848,5.39851249,2554.9,2554.8,1.48207532]
[1729747954248,5.39851249,2554.9,2554.8,1.88527532]
[1729747954547,3.2078,2555.2,2555.1,0.35257]
[1729747954548,1.12947532,2555.2,2555.1,0.35257]
[1729747954749,1.12947532,2555.2,2555.1,1.48204532]
[1729747955050,1.12947532,2555.2,2555.1,5.39564532]
[1729747955746,1.12947532,2555.2,2555.1,4.26617]
[1729747957948,3.2078,2555.5,2555.1,5.04307532]
[1729747958147,40.8,2555.6,2555.1,5.04307532]
[1729747958148,41.92947532,2555.6,2555.4,1.12947532]
[1729747958339,1.12947532,2555.6,2555.5,0.35251]
[1729747958646,1.12947532,2555.6,2555.4,1.12947532]
[1729747958647,4.36204979,2555.5,2555.4,0.35252]
[1729747958846,5.49152511,2555.6,2555.5,1.48198532]
[1729747959048,1.12947532,2555.6,2555.5,1.48198532]
[1729747959347,5.23946436,2555.6,2555.5,1.48198532]
[1729747961442,5.23946436,2555.6,2555.3,3.2078]
[1729747961649,5.23946436,2555.6,2555.3,3.56033]
[1729747961650,1.12947532,2555.4,2555.3,3.56033]
[1729747962250,7.12761251,2555.4,2555.0,0.35257]
[1729747962547,7.12761251,2555.4,2554.8,1.12947532]
[1729747962548,1.12947532,2555.1,2554.8,1.12947532]
[1729747962747,1.12947532,2554.9,2554.8,0.3526]
[1729747963052,1.12947532,2554.9,2554.5,1.12947532]
[1729747963257,0.4377,2554.8,2554.7,0.35261]
[1729747963750,0.4377,2554.8,2554.5,1.12947532]
[1729747963751,4.77870359,2554.8,2554.5,1.12947532]
[1729747963947,1.12947532,2554.7,2554.6,0.35264]
[1729747964145,1.12947532,2554.7,2554.6,1.48211532]
[1729747965850,1.12947532,2554.7,2554.6,0.35264]
[1729747967151,5.48072783,2554.7,2554.6,3.56044]
[1729747967551,5.48072783,2554.7,2554.6,0.35264]
[1729747967751,5.83335783,2554.7,2554.4,0.35266]
[1729747967958,1.12947532,2554.5,2554.4,1.48213532]
[1729747968259,5.41319255,2554.5,2554.4,1.48213532]
[1729747969051,5.41319255,2554.5,2554.4,4.68993532]
[1729747970556,5.41319255,2554.5,2554.4,4.33727532]
[1729747970757,5.41319255,2554.5,2554.4,4.68993532]
[1729747971158,5.41319255,2554.5,2554.4,1.48213532]
[1729747971357,5.41319255,2554.5,2554.4,4.68993532]
[1729747971859,4.28371723,2554.5,2554.4,8.60433532]
[1729747972051,0.4377,2554.8,2554.7,0.35262]
[1729747972250,1.56717532,2554.8,2554.7,1.48209532]
[1729747972563,5.90782944,2554.8,2554.7,1.48209532]
[1729747975355,5.90782944,2554.8,2554.7,0.35262]
[1729747978554,4.77835412,2554.8,2554.7,1.48209532]
[1729747985357,4.34065412,2554.8,2554.7,1.48209532]
[1729747985559,0.8663,2555.0,2554.7,2.06369491]
[1729747985766,0.8663,2555.0,2554.9,1.48206532]
[1729747986161,4.94446348,2555.0,2554.9,1.48206532]
[1729747986659,0.4377,2555.0,2554.9,1.48206532]
[1729747988168,1.56717532,2555.0,2554.8,1.12947532]
[1729747988366,1.56717532,2555.0,2554.8,1.48207532]
[1729747988660,1.56717532,2555.0,2554.8,1.12947532]
[1729747988862,1.56717532,2555.0,2554.8,0.35261]
[1729747989462,5.43956183,2554.9,2554.6,3.2078]
[1729747989767,1.12947532,2554.7,2554.3,0.35267]
[1729747989971,1.12947532,2554.4,2554.3,0.35267]
[1729747990263,5.93014888,2554.6,2554.4,0.35265]
[1729747990564,0.4119,2554.5,2554.4,1.48212532]
[1729747990764,4.36777356,2554.5,2554.4,1.60466018]
[1729747990967,0.4329,2554.6,2554.4,5.59250833]
[1729747991169,0.4329,2554.6,2554.5,1.60465591]
[1729747991361,0.4275,2554.8,2554.5,1.12947532]
[1729747991562,0.4275,2554.8,2554.7,1.48209532]
[1729747991764,0.4329,2554.9,2554.8,0.35261]
[1729747992067,0.4329,2554.9,2554.8,1.60460269]
[1729747992266,0.4329,2554.9,2554.8,0.47512686]
[1729747993363,0.4329,2554.9,2554.8,0.47512915]
[1729747994568,0.4329,2554.9,2554.8,0.35261]
[1729747994961,0.4329,2554.9,2554.6,3.2078]
[1729747995165,0.4359,2554.8,2554.7,0.47514389]
[1729747996166,0.4359,2554.8,2554.7,0.35262]
[1729747996566,4.81334506,2554.8,2554.7,0.47514249]
[1729747996766,4.81334506,2554.8,2554.6,3.2078]
[1729747996767,4.81334506,2554.8,2554.6,0.35263]
[1729747996968,0.4036,2554.7,2554.3,3.2078]